[Event "Late-Titled-Tuesday-Blitz-July-09-2024"]
[Site "Chess.com"]
[Date "2024.07.09"]
[Round "6"]
[White "SimplyDevina"]
[Black "Slovineanu"]
[Result "0-1"]
[WhiteElo "2371"]
[BlackElo "2532"]
[TimeControl "180+1"]
[EndTime "15:05:32 PDT"]
[Termination "Slovineanu won by resignation"]

1. d4 {[%clk 0:03:00.9]} 1... Nf6 {[%clk 0:02:59.2]} 2. c4 {[%clk 0:03:00.4]}
2... e6 {[%clk 0:02:59.1]} 3. Nc3 {[%clk 0:02:58]} 3... d5 {[%clk 0:02:58.2]} 4.
cxd5 {[%clk 0:02:58]} 4... Nxd5 {[%clk 0:02:58]} 5. e4 {[%clk 0:02:58.1]} 5...
Nxc3 {[%clk 0:02:57.5]} 6. bxc3 {[%clk 0:02:59]} 6... c5 {[%clk 0:02:57.9]} 7.
Nf3 {[%clk 0:02:58.4]} 7... cxd4 {[%clk 0:02:58.8]} 8. cxd4 {[%clk 0:02:59]}
8... Bb4+ {[%clk 0:02:58.7]} 9. Bd2 {[%clk 0:02:57.8]} 9... Bxd2+ {[%clk
0:02:59.2]} 10. Qxd2 {[%clk 0:02:58.7]} 10... O-O {[%clk 0:02:58.9]} 11. Be2
{[%clk 0:02:56.9]} 11... Nd7 {[%clk 0:02:58.3]} 12. O-O {[%clk 0:02:56.9]} 12...
b6 {[%clk 0:02:58.9]} 13. Rac1 {[%clk 0:02:50.6]} 13... Bb7 {[%clk 0:02:58.5]}
14. Qe3 {[%clk 0:02:45.6]} 14... Rc8 {[%clk 0:02:52.1]} 15. Nd2 {[%clk
0:02:39.8]} 15... Qe7 {[%clk 0:02:34.9]} 16. Nc4 {[%clk 0:02:25.4]} 16... Ba6
{[%clk 0:02:23.2]} 17. Nb2 {[%clk 0:01:43]} 17... Bxe2 {[%clk 0:02:03.9]} 18.
Qxe2 {[%clk 0:01:43.9]} 18... Qb4 {[%clk 0:01:49.9]} 19. a3 {[%clk 0:01:20.2]}
19... Qb3 {[%clk 0:01:39.1]} 20. Nd3 {[%clk 0:00:53.2]} 20... Rxc1 {[%clk
0:01:25.9]} 21. Rxc1 {[%clk 0:00:52.9]} 21... Qxa3 {[%clk 0:01:25.9]} 22. h4
{[%clk 0:00:49.5]} 22... h6 {[%clk 0:01:24.2]} 23. g3 {[%clk 0:00:41.6]} 23...
Nf6 {[%clk 0:01:22.7]} 24. Rd1 {[%clk 0:00:32.3]} 24... Rd8 {[%clk 0:01:20.6]}
25. Ne5 {[%clk 0:00:28.2]} 25... Qd6 {[%clk 0:01:04.5]} 26. Nc4 {[%clk
0:00:21.6]} 26... Qb4 {[%clk 0:01:01.3]} 27. e5 {[%clk 0:00:18.6]} 27... Nd5
{[%clk 0:00:57]} 28. Nd6 {[%clk 0:00:19.2]} 28... Rxd6 {[%clk 0:00:55.9]} 29.
exd6 {[%clk 0:00:19.1]} 29... Qxd6 {[%clk 0:00:56.4]} 30. Rc1 {[%clk 0:00:18.2]}
30... Qd7 {[%clk 0:00:47]} 31. Qe4 {[%clk 0:00:15.2]} 31... a5 {[%clk
0:00:45.3]} 32. g4 {[%clk 0:00:11.2]} 32... Qd8 {[%clk 0:00:28.2]} 33. h5 {[%clk
0:00:04.3]} 33... b5 {[%clk 0:00:23.4]} 34. Qd3 {[%clk 0:00:03.8]} 34... b4
{[%clk 0:00:22.7]} 35. Qe4 {[%clk 0:00:01.9]} 35... a4 {[%clk 0:00:21.2]} 36. f4
{[%clk 0:00:01.7]} 36... a3 {[%clk 0:00:18.1]} 37. f5 {[%clk 0:00:02.3]} 37...
Qd7 {[%clk 0:00:12.4]} 38. fxe6 {[%clk 0:00:02.7]} 38... Qxe6 {[%clk 0:00:12.3]}
39. Qd3 {[%clk 0:00:01.4]} 39... g6 {[%clk 0:00:11.5]} 40. hxg6 {[%clk
0:00:01.3]} 40... Qxg6 {[%clk 0:00:11.2]} 41. Qb5 {[%clk 0:00:01.6]} 41... Qxg4+
{[%clk 0:00:09.5]} 42. Kh1 {[%clk 0:00:01.5]} 42... Qf3+ {[%clk 0:00:09.3]} 43.
Kh2 {[%clk 0:00:01.7]} 43... Qf4+ {[%clk 0:00:08.6]} 44. Kh3 {[%clk 0:00:01.7]}
44... Qxc1 {[%clk 0:00:09.1]} 45. Qe8+ {[%clk 0:00:01.9]} 45... Kg7 {[%clk
0:00:08.8]} 46. Qe5+ {[%clk 0:00:02.5]} 46... Nf6 {[%clk 0:00:08.9]} 47. Qg3+
{[%clk 0:00:03.2]} 47... Qg5 {[%clk 0:00:08.2]} 0-1

[Event "Late-Titled-Tuesday-Blitz-July-09-2024"]
[Site "Chess.com"]
[Date "2024.07.09"]
[Round "6"]
[White "AlexanderMatlak"]
[Black "th3d4rkness"]
[Result "1-0"]
[WhiteElo "2509"]
[BlackElo "2250"]
[TimeControl "180+1"]
[EndTime "15:05:32 PDT"]
[Termination "AlexanderMatlak won on time"]

1. c4 {[%clk 0:03:00.9]} 1... c5 {[%clk 0:02:59.4]} 2. Nf3 {[%clk 0:03:00.6]}
2... g6 {[%clk 0:02:58.6]} 3. Nc3 {[%clk 0:03:00.7]} 3... Bg7 {[%clk 0:02:58.8]}
4. g3 {[%clk 0:03:00.4]} 4... Nc6 {[%clk 0:02:59.2]} 5. Bg2 {[%clk 0:03:00.7]}
5... d6 {[%clk 0:02:59.4]} 6. O-O {[%clk 0:03:00.9]} 6... Bf5 {[%clk 0:02:57.9]}
7. d3 {[%clk 0:02:59.4]} 7... Qd7 {[%clk 0:02:57.1]} 8. Re1 {[%clk 0:02:59.7]}
8... Bh3 {[%clk 0:02:56.9]} 9. Bh1 {[%clk 0:03:00.1]} 9... h5 {[%clk 0:02:57.1]}
10. Nd5 {[%clk 0:03:00.5]} 10... h4 {[%clk 0:02:41.8]} 11. Rb1 {[%clk
0:02:58.4]} 11... hxg3 {[%clk 0:02:28.5]} 12. fxg3 {[%clk 0:02:59.3]} 12... Nd4
{[%clk 0:02:27.2]} 13. Be3 {[%clk 0:02:57.6]} 13... Nf5 {[%clk 0:02:18.1]} 14.
Bf2 {[%clk 0:02:57]} 14... e6 {[%clk 0:02:13]} 15. Nf4 {[%clk 0:02:56.6]} 15...
Bg4 {[%clk 0:02:11.4]} 16. b4 {[%clk 0:02:56.2]} 16... b6 {[%clk 0:01:39.9]} 17.
bxc5 {[%clk 0:02:53.6]} 17... dxc5 {[%clk 0:01:39.8]} 18. Ne5 {[%clk 0:02:31.3]}
18... Bxe5 {[%clk 0:01:39.2]} 19. Bxa8 {[%clk 0:02:31.4]} 19... Bd4 {[%clk
0:01:22]} 20. e3 {[%clk 0:02:25]} 20... Bxd1 {[%clk 0:01:21.5]} 21. exd4 {[%clk
0:02:21.5]} 21... Nxd4 {[%clk 0:01:17.7]} 22. Rbxd1 {[%clk 0:02:18.3]} 22... Nf6
{[%clk 0:01:09.4]} 23. Bg2 {[%clk 0:02:17.1]} 23... O-O {[%clk 0:01:07.4]} 24.
h3 {[%clk 0:02:07.7]} 24... g5 {[%clk 0:01:04.1]} 25. Ne2 {[%clk 0:02:07.7]}
25... Nc2 {[%clk 0:00:58.7]} 26. Rf1 {[%clk 0:02:03.4]} 26... g4 {[%clk
0:00:58]} 27. h4 {[%clk 0:01:55.2]} 27... Nh5 {[%clk 0:00:52]} 28. Rd2 {[%clk
0:01:47]} 28... Nd4 {[%clk 0:00:51]} 29. Nxd4 {[%clk 0:01:46.4]} 29... cxd4
{[%clk 0:00:50.9]} 30. Re1 {[%clk 0:01:43.3]} 30... f5 {[%clk 0:00:46.5]} 31.
Rxe6 {[%clk 0:01:43.1]} 31... Ng7 {[%clk 0:00:36.1]} 32. Re5 {[%clk 0:01:36.4]}
32... Re8 {[%clk 0:00:33.3]} 33. Bd5+ {[%clk 0:01:36.1]} 33... Kh7 {[%clk
0:00:32.9]} 34. Bxd4 {[%clk 0:01:34.9]} 34... Rxe5 {[%clk 0:00:26.2]} 35. Bxe5
{[%clk 0:01:35.8]} 35... Qe7 {[%clk 0:00:21.2]} 36. Re2 {[%clk 0:01:21.3]} 36...
Qc5+ {[%clk 0:00:19.3]} 37. Kg2 {[%clk 0:01:14]} 37... Qa3 {[%clk 0:00:18.5]}
38. d4 {[%clk 0:01:09.3]} 38... Qd3 {[%clk 0:00:16.7]} 39. Kf2 {[%clk
0:00:49.2]} 39... a6 {[%clk 0:00:09.4]} 40. a4 {[%clk 0:00:39.8]} 40... b5
{[%clk 0:00:09.1]} 41. axb5 {[%clk 0:00:39.5]} 41... axb5 {[%clk 0:00:09.6]} 42.
c5 {[%clk 0:00:37.5]} 42... b4 {[%clk 0:00:09.9]} 43. c6 {[%clk 0:00:38]} 43...
b3 {[%clk 0:00:07.4]} 44. c7 {[%clk 0:00:36.3]} 44... Qc3 {[%clk 0:00:07.6]} 45.
Bb7 {[%clk 0:00:21.3]} 45... f4 {[%clk 0:00:07.9]} 46. gxf4 {[%clk 0:00:17.8]}
46... g3+ {[%clk 0:00:06.3]} 47. Kg2 {[%clk 0:00:17.7]} 47... Nf5 {[%clk
0:00:05.8]} 48. c8=Q {[%clk 0:00:15.9]} 48... Nxh4+ {[%clk 0:00:04.6]} 49. Kh3
{[%clk 0:00:16.4]} 49... g2+ {[%clk 0:00:04.6]} 50. Qxc3 {[%clk 0:00:15.8]} 1-0

[Event "Late-Titled-Tuesday-Blitz-July-09-2024"]
[Site "Chess.com"]
[Date "2024.07.09"]
[Round "6"]
[White "Beaterawn"]
[Black "Chessbard1972"]
[Result "1-0"]
[WhiteElo "2432"]
[BlackElo "2272"]
[TimeControl "180+1"]
[EndTime "15:05:35 PDT"]
[Termination "Beaterawn won on time"]

1. e4 {[%clk 0:02:56.7]} 1... c5 {[%clk 0:02:58.9]} 2. Nf3 {[%clk 0:02:56.7]}
2... Nc6 {[%clk 0:02:59.1]} 3. d4 {[%clk 0:02:57.1]} 3... cxd4 {[%clk
0:02:59.2]} 4. Nxd4 {[%clk 0:02:58]} 4... e5 {[%clk 0:02:59.5]} 5. Nb5 {[%clk
0:02:57.7]} 5... a6 {[%clk 0:03:00.1]} 6. Nd6+ {[%clk 0:02:57.1]} 6... Bxd6
{[%clk 0:02:59.8]} 7. Qxd6 {[%clk 0:02:58]} 7... Qf6 {[%clk 0:03:00.3]} 8. Qd1
{[%clk 0:02:57.1]} 8... Qg6 {[%clk 0:03:00.3]} 9. Nc3 {[%clk 0:02:57.8]} 9... d5
{[%clk 0:02:59.7]} 10. Nxd5 {[%clk 0:02:49.2]} 10... Qxe4+ {[%clk 0:02:58.4]}
11. Be3 {[%clk 0:02:38.1]} 11... Nd4 {[%clk 0:02:57.7]} 12. Nc7+ {[%clk
0:02:34.3]} 12... Ke7 {[%clk 0:02:57.5]} 13. Nxa8 {[%clk 0:01:49]} 13... Bg4
{[%clk 0:02:47.7]} 14. Qd3 {[%clk 0:01:38.6]} 14... Nxc2+ {[%clk 0:02:41.8]} 15.
Kd2 {[%clk 0:01:38.1]} 15... Qxd3+ {[%clk 0:02:16.9]} 16. Bxd3 {[%clk 0:01:39]}
16... Nxa1 {[%clk 0:02:16.6]} 17. Rxa1 {[%clk 0:01:33.5]} 17... Nf6 {[%clk
0:02:12.6]} 18. Nb6 {[%clk 0:01:30.5]} 18... Rd8 {[%clk 0:02:09.3]} 19. Rc1
{[%clk 0:01:30.5]} 19... e4 {[%clk 0:02:07.9]} 20. Rc7+ {[%clk 0:01:23.4]} 20...
Kf8 {[%clk 0:02:01.1]} 21. Bc5+ {[%clk 0:01:14.7]} 21... Kg8 {[%clk 0:02:00.2]}
22. Rxb7 {[%clk 0:01:10.1]} 22... Rxd3+ {[%clk 0:01:53.9]} 23. Kc2 {[%clk
0:01:10.3]} 23... h6 {[%clk 0:01:38.7]} 24. Nc4 {[%clk 0:00:57.8]} 24... Rd5
{[%clk 0:01:30.7]} 25. b4 {[%clk 0:00:49.5]} 25... Be2 {[%clk 0:01:26.2]} 26.
Nd6 {[%clk 0:00:42]} 26... Bd3+ {[%clk 0:01:22.6]} 27. Kc3 {[%clk 0:00:38.2]}
27... Ng4 {[%clk 0:01:14.8]} 28. Nxf7 {[%clk 0:00:29.8]} 28... Bb5 {[%clk
0:01:04.9]} 29. Nd6 {[%clk 0:00:24.9]} 29... Nxf2 {[%clk 0:00:59.3]} 30. Nxb5
{[%clk 0:00:17.6]} 30... Nd1+ {[%clk 0:00:27.8]} 31. Kc4 {[%clk 0:00:18]} 31...
Rd3 {[%clk 0:00:26.9]} 32. Bd4 {[%clk 0:00:07.6]} 32... axb5+ {[%clk 0:00:24.1]}
33. Kc5 {[%clk 0:00:08.2]} 33... e3 {[%clk 0:00:22.4]} 34. Rxg7+ {[%clk
0:00:08.2]} 34... Kf8 {[%clk 0:00:21.7]} 35. Rg6 {[%clk 0:00:03.7]} 35... Kf7
{[%clk 0:00:13.2]} 36. Rf6+ {[%clk 0:00:03.6]} 36... Ke7 {[%clk 0:00:13.3]} 37.
Rf4 {[%clk 0:00:03.7]} 37... Ke6 {[%clk 0:00:08.2]} 38. Re4+ {[%clk 0:00:03.5]}
38... Kf5 {[%clk 0:00:08.4]} 39. Re5+ {[%clk 0:00:02.5]} 39... Kf4 {[%clk
0:00:07.8]} 40. h3 {[%clk 0:00:01.7]} 40... Kg3 {[%clk 0:00:06.6]} 41. Re4
{[%clk 0:00:01.6]} 41... Kxg2 {[%clk 0:00:05]} 42. a4 {[%clk 0:00:02.5]} 42...
bxa4 {[%clk 0:00:04.3]} 43. b5 {[%clk 0:00:03.4]} 43... Kf3 {[%clk 0:00:02.3]}
44. Re5 {[%clk 0:00:03.5]} 44... e2 {[%clk 0:00:01.1]} 45. b6 {[%clk 0:00:03.2]}
1-0

[Event "Late-Titled-Tuesday-Blitz-July-09-2024"]
[Site "Chess.com"]
[Date "2024.07.09"]
[Round "6"]
[White "GMRafpig"]
[Black "subham777"]
[Result "1-0"]
[WhiteElo "2773"]
[BlackElo "2561"]
[TimeControl "180+1"]
[EndTime "15:05:37 PDT"]
[Termination "GMRafpig won by checkmate"]

1. c4 {[%clk 0:03:00.9]} 1... e6 {[%clk 0:02:59.5]} 2. g3 {[%clk 0:03:00.1]}
2... d5 {[%clk 0:02:57.7]} 3. Bg2 {[%clk 0:02:59.8]} 3... Nf6 {[%clk 0:02:57.8]}
4. Nf3 {[%clk 0:02:58.9]} 4... Be7 {[%clk 0:02:56.4]} 5. O-O {[%clk 0:02:59.4]}
5... O-O {[%clk 0:02:56.7]} 6. b3 {[%clk 0:02:59.2]} 6... c5 {[%clk 0:02:56.4]}
7. cxd5 {[%clk 0:02:54.7]} 7... Nxd5 {[%clk 0:02:53.9]} 8. Bb2 {[%clk
0:02:53.9]} 8... Bf6 {[%clk 0:02:53]} 9. d4 {[%clk 0:02:51.2]} 9... cxd4 {[%clk
0:02:50.3]} 10. Nxd4 {[%clk 0:02:46.8]} 10... Qe7 {[%clk 0:02:45.1]} 11. Nd2
{[%clk 0:02:31.5]} 11... Rd8 {[%clk 0:02:40.5]} 12. e3 {[%clk 0:01:43.5]} 12...
a6 {[%clk 0:02:17.4]} 13. Qe2 {[%clk 0:01:38.9]} 13... Bd7 {[%clk 0:01:58.6]}
14. Rfd1 {[%clk 0:01:06.5]} 14... Nc6 {[%clk 0:01:54.9]} 15. Ne4 {[%clk
0:01:06.6]} 15... Nxd4 {[%clk 0:01:44.5]} 16. Nxf6+ {[%clk 0:01:06.4]} 16...
Nxf6 {[%clk 0:01:40.7]} 17. Bxd4 {[%clk 0:00:59.6]} 17... e5 {[%clk 0:01:35.8]}
18. Bb6 {[%clk 0:00:59.4]} 18... Re8 {[%clk 0:01:24.5]} 19. a4 {[%clk
0:00:47.6]} 19... Qb4 {[%clk 0:01:13.3]} 20. a5 {[%clk 0:00:47.7]} 20... Bb5
{[%clk 0:01:03.9]} 21. Qd2 {[%clk 0:00:47.7]} 21... Qxb3 {[%clk 0:00:59.1]} 22.
Bxb7 {[%clk 0:00:37.6]} 22... Rab8 {[%clk 0:00:55.7]} 23. Bg2 {[%clk 0:00:37.7]}
23... h5 {[%clk 0:00:50.9]} 24. Rab1 {[%clk 0:00:30.3]} 24... Qe6 {[%clk
0:00:49.7]} 25. Qd6 {[%clk 0:00:30]} 25... Qf5 {[%clk 0:00:45.3]} 26. h3 {[%clk
0:00:22.3]} 26... Ne4 {[%clk 0:00:38.9]} 27. Bxe4 {[%clk 0:00:19]} 27... Qxe4
{[%clk 0:00:39.8]} 28. Qd5 {[%clk 0:00:18.4]} 28... Qf5 {[%clk 0:00:37.7]} 29.
Qg2 {[%clk 0:00:17.1]} 29... Rbc8 {[%clk 0:00:35.2]} 30. Rbc1 {[%clk 0:00:17.5]}
30... Rxc1 {[%clk 0:00:30.6]} 31. Rxc1 {[%clk 0:00:17.9]} 31... Rc8 {[%clk
0:00:31.4]} 32. Rxc8+ {[%clk 0:00:16]} 32... Qxc8 {[%clk 0:00:32.3]} 33. e4
{[%clk 0:00:11.2]} 33... Qc1+ {[%clk 0:00:26.4]} 34. Kh2 {[%clk 0:00:11.1]}
34... Qd1 {[%clk 0:00:22]} 35. f4 {[%clk 0:00:07.2]} 35... exf4 {[%clk
0:00:15.7]} 36. gxf4 {[%clk 0:00:07.2]} 36... Qe1 {[%clk 0:00:14.9]} 37. Bd4
{[%clk 0:00:05.4]} 37... g6 {[%clk 0:00:12.4]} 38. f5 {[%clk 0:00:05.9]} 38...
Bc6 {[%clk 0:00:08.3]} 39. fxg6 {[%clk 0:00:05.2]} 39... f5 {[%clk 0:00:05.6]}
40. Qa2+ {[%clk 0:00:03.4]} 40... Kf8 {[%clk 0:00:01]} 41. g7+ {[%clk
0:00:03.7]} 41... Ke8 {[%clk 0:00:01.9]} 42. g8=Q+ {[%clk 0:00:03.5]} 42... Kd7
{[%clk 0:00:02.6]} 43. Qge6+ {[%clk 0:00:03.4]} 43... Kc7 {[%clk 0:00:03]} 44.
Be5+ {[%clk 0:00:03.9]} 44... Kd8 {[%clk 0:00:03.4]} 45. Qd6+ {[%clk 0:00:03.3]}
45... Bd7 {[%clk 0:00:03.8]} 46. Bf6+ {[%clk 0:00:03.4]} 46... Kc8 {[%clk
0:00:03.2]} 47. Qc4+ {[%clk 0:00:03.6]} 47... Kb7 {[%clk 0:00:04.1]} 48. Qcc7+
{[%clk 0:00:03.9]} 48... Ka8 {[%clk 0:00:05]} 49. Qb8# {[%clk 0:00:04.8]} 1-0

[Event "Late-Titled-Tuesday-Blitz-July-09-2024"]
[Site "Chess.com"]
[Date "2024.07.09"]
[Round "6"]
[White "carokannlover213"]
[Black "alexrustemov"]
[Result "0-1"]
[WhiteElo "2708"]
[BlackElo "2881"]
[TimeControl "180+1"]
[EndTime "15:05:38 PDT"]
[Termination "alexrustemov won by checkmate"]

1. d4 {[%clk 0:02:54.2]} 1... d5 {[%clk 0:02:59.9]} 2. Nf3 {[%clk 0:02:54.5]}
2... Nf6 {[%clk 0:02:59.6]} 3. Bf4 {[%clk 0:02:54.4]} 3... c5 {[%clk 0:02:59.7]}
4. e3 {[%clk 0:02:53.6]} 4... Nc6 {[%clk 0:03:00.1]} 5. Nbd2 {[%clk 0:02:53.1]}
5... Bg4 {[%clk 0:03:00.5]} 6. c3 {[%clk 0:02:50.8]} 6... e6 {[%clk 0:03:00.8]}
7. Bb5 {[%clk 0:02:44.5]} 7... Qb6 {[%clk 0:02:59.8]} 8. Qa4 {[%clk 0:02:41.9]}
8... Bxf3 {[%clk 0:02:57.5]} 9. Nxf3 {[%clk 0:02:39]} 9... Rc8 {[%clk
0:02:57.8]} 10. O-O {[%clk 0:02:32.4]} 10... a6 {[%clk 0:02:57.5]} 11. Bd3
{[%clk 0:02:29.9]} 11... Be7 {[%clk 0:02:52.8]} 12. Rab1 {[%clk 0:02:27.2]}
12... O-O {[%clk 0:02:51.9]} 13. Qd1 {[%clk 0:02:21.3]} 13... Rfd8 {[%clk
0:02:50.5]} 14. Qe2 {[%clk 0:02:19.5]} 14... h6 {[%clk 0:02:48.1]} 15. Kh1
{[%clk 0:02:13.3]} 15... Bd6 {[%clk 0:02:47.2]} 16. Ne5 {[%clk 0:02:04]} 16...
Qc7 {[%clk 0:02:45.7]} 17. Nxc6 {[%clk 0:01:48.1]} 17... Qxc6 {[%clk 0:02:45.7]}
18. Bxd6 {[%clk 0:01:42]} 18... Qxd6 {[%clk 0:02:45]} 19. Rbd1 {[%clk
0:01:38.2]} 19... b5 {[%clk 0:02:34.4]} 20. a4 {[%clk 0:01:29.9]} 20... Rb8
{[%clk 0:02:26.4]} 21. dxc5 {[%clk 0:01:25.7]} 21... Qxc5 {[%clk 0:02:26.3]} 22.
axb5 {[%clk 0:01:26.1]} 22... axb5 {[%clk 0:02:26.1]} 23. Ra1 {[%clk 0:01:26.4]}
23... b4 {[%clk 0:02:16.5]} 24. Rfc1 {[%clk 0:01:23.6]} 24... bxc3 {[%clk
0:02:15.7]} 25. bxc3 {[%clk 0:01:24.5]} 25... Rdc8 {[%clk 0:02:08]} 26. c4
{[%clk 0:01:20.8]} 26... d4 {[%clk 0:02:07.9]} 27. e4 {[%clk 0:01:08.9]} 27...
e5 {[%clk 0:02:03.4]} 28. Rab1 {[%clk 0:01:06.5]} 28... Nd7 {[%clk 0:02:01.1]}
29. h3 {[%clk 0:01:03.5]} 29... Qd6 {[%clk 0:01:59.4]} 30. Rxb8 {[%clk 0:01:02]}
30... Rxb8 {[%clk 0:01:58.5]} 31. Qa2 {[%clk 0:00:58.2]} 31... Nc5 {[%clk
0:01:57.9]} 32. Qa3 {[%clk 0:00:58.2]} 32... Rd8 {[%clk 0:01:50]} 33. Kg1 {[%clk
0:00:44.2]} 33... g6 {[%clk 0:01:42.5]} 34. Ra1 {[%clk 0:00:14.3]} 34... Kg7
{[%clk 0:01:40.2]} 35. Kf1 {[%clk 0:00:14.3]} 35... Rb8 {[%clk 0:01:35.7]} 36.
Bc2 {[%clk 0:00:04]} 36... d3 {[%clk 0:01:33.7]} 37. Rd1 {[%clk 0:00:02.7]}
37... dxc2 {[%clk 0:01:25.9]} 38. Rxd6 {[%clk 0:00:02.7]} 38... Rb1+ {[%clk
0:01:26.5]} 39. Ke2 {[%clk 0:00:03.3]} 39... c1=Q {[%clk 0:01:26.8]} 40. Qxc1
{[%clk 0:00:04.2]} 40... Rxc1 {[%clk 0:01:26.7]} 41. Rd5 {[%clk 0:00:04.5]}
41... Rxc4 {[%clk 0:01:25.6]} 42. f3 {[%clk 0:00:04.8]} 42... Kf6 {[%clk
0:01:23.5]} 43. g3 {[%clk 0:00:02.6]} 43... Ne6 {[%clk 0:01:20.9]} 44. Rd6
{[%clk 0:00:02.3]} 44... Rc3 {[%clk 0:01:16.7]} 45. f4 {[%clk 0:00:01.4]} 45...
exf4 {[%clk 0:01:16.3]} 46. gxf4 {[%clk 0:00:02.3]} 46... Ke7 {[%clk 0:01:14.4]}
47. e5 {[%clk 0:00:01.8]} 47... Nxf4+ {[%clk 0:01:13.6]} 48. Kd2 {[%clk
0:00:02.3]} 48... Rxh3 {[%clk 0:01:13.1]} 49. Ra6 {[%clk 0:00:03.2]} 49... Ne6
{[%clk 0:01:12.4]} 50. Ke2 {[%clk 0:00:03.1]} 50... h5 {[%clk 0:01:10]} 51. Ra5
{[%clk 0:00:04]} 51... g5 {[%clk 0:01:09]} 52. Kf2 {[%clk 0:00:04.9]} 52... g4
{[%clk 0:01:08.3]} 53. Kg2 {[%clk 0:00:05.5]} 53... Kf8 {[%clk 0:01:08.3]} 54.
Kf2 {[%clk 0:00:06.4]} 54... Kg7 {[%clk 0:01:08.8]} 55. Kg2 {[%clk 0:00:07.3]}
55... Kg6 {[%clk 0:01:09.2]} 56. Ra6 {[%clk 0:00:07.9]} 56... Kf5 {[%clk
0:01:08.2]} 57. Ra5 {[%clk 0:00:08.8]} 57... Nf4+ {[%clk 0:01:08.2]} 58. Kg1
{[%clk 0:00:08.6]} 58... Re3 {[%clk 0:01:06.6]} 59. e6+ {[%clk 0:00:08.4]} 59...
Kxe6 {[%clk 0:01:04.5]} 60. Kf2 {[%clk 0:00:08.6]} 60... Rf3+ {[%clk 0:01:04.3]}
61. Kg1 {[%clk 0:00:09]} 61... h4 {[%clk 0:01:03.8]} 62. Ra8 {[%clk 0:00:08]}
62... h3 {[%clk 0:01:02.2]} 63. Rh8 {[%clk 0:00:08]} 63... f5 {[%clk 0:00:56.3]}
64. Re8+ {[%clk 0:00:07.6]} 64... Kf7 {[%clk 0:00:55.7]} 65. Re1 {[%clk
0:00:07.2]} 65... Kf6 {[%clk 0:00:53.6]} 66. Kh2 {[%clk 0:00:07.3]} 66... g3+
{[%clk 0:00:52.9]} 67. Kh1 {[%clk 0:00:07.9]} 67... Rf1+ {[%clk 0:00:51.4]} 68.
Rxf1 {[%clk 0:00:07.6]} 68... g2+ {[%clk 0:00:52.1]} 69. Kg1 {[%clk 0:00:07.9]}
69... gxf1=Q+ {[%clk 0:00:52.3]} 70. Kh2 {[%clk 0:00:08.6]} 70... Qg2# {[%clk
0:00:50.9]} 0-1

[Event "Late-Titled-Tuesday-Blitz-July-09-2024"]
[Site "Chess.com"]
[Date "2024.07.09"]
[Round "6"]
[White "MetiForce"]
[Black "SpeedofLight0"]
[Result "1/2-1/2"]
[WhiteElo "2915"]
[BlackElo "3128"]
[TimeControl "180+1"]
[EndTime "15:05:44 PDT"]
[Termination "Game drawn by repetition"]

1. e4 {[%clk 0:03:00.9]} 1... c6 {[%clk 0:02:59.7]} 2. d4 {[%clk 0:02:58.8]}
2... d5 {[%clk 0:03:00.4]} 3. e5 {[%clk 0:02:59]} 3... Bf5 {[%clk 0:03:00.6]} 4.
Nf3 {[%clk 0:02:57.3]} 4... e6 {[%clk 0:02:59.9]} 5. Be2 {[%clk 0:02:57.3]} 5...
Nd7 {[%clk 0:02:59.9]} 6. O-O {[%clk 0:02:53.2]} 6... a5 {[%clk 0:02:59.9]} 7.
a4 {[%clk 0:02:30.6]} 7... f6 {[%clk 0:02:59.1]} 8. c4 {[%clk 0:02:27.8]} 8...
fxe5 {[%clk 0:02:54.3]} 9. dxe5 {[%clk 0:02:19.2]} 9... Bc5 {[%clk 0:02:52]} 10.
Nbd2 {[%clk 0:02:13.5]} 10... Ne7 {[%clk 0:02:47.8]} 11. Nb3 {[%clk 0:02:12.5]}
11... Bb6 {[%clk 0:02:46]} 12. Bg5 {[%clk 0:02:07.9]} 12... O-O {[%clk
0:02:41.2]} 13. Nbd4 {[%clk 0:02:04.4]} 13... Qe8 {[%clk 0:02:35.2]} 14. Ra3
{[%clk 0:01:55.4]} 14... Nc5 {[%clk 0:02:14.5]} 15. Be3 {[%clk 0:01:40.5]} 15...
Ng6 {[%clk 0:01:58.9]} 16. cxd5 {[%clk 0:01:20.1]} 16... exd5 {[%clk 0:01:55.8]}
17. Nxf5 {[%clk 0:01:18.2]} 17... Rxf5 {[%clk 0:01:56.7]} 18. Qc2 {[%clk
0:01:11.2]} 18... Qf8 {[%clk 0:01:51.1]} 19. Rc1 {[%clk 0:00:43]} 19... Nd7
{[%clk 0:01:44.5]} 20. Bxb6 {[%clk 0:00:43.4]} 20... Nxb6 {[%clk 0:01:45.4]} 21.
Rb3 {[%clk 0:00:43.7]} 21... Nd7 {[%clk 0:00:58.4]} 22. e6 {[%clk 0:00:41.5]}
22... Nde5 {[%clk 0:00:58.6]} 23. Rxb7 {[%clk 0:00:40.3]} 23... Re8 {[%clk
0:00:57.7]} 24. Nxe5 {[%clk 0:00:25.8]} 24... Nxe5 {[%clk 0:00:58.6]} 25. f3
{[%clk 0:00:20.6]} 25... Rxe6 {[%clk 0:00:54]} 26. Qb3 {[%clk 0:00:17.7]} 26...
Re8 {[%clk 0:00:51.7]} 27. Bf1 {[%clk 0:00:17.2]} 27... Qd6 {[%clk 0:00:42.2]}
28. Qc3 {[%clk 0:00:14.9]} 28... Ref8 {[%clk 0:00:36.1]} 29. Kh1 {[%clk
0:00:10.9]} 29... Qh6 {[%clk 0:00:34.1]} 30. Re1 {[%clk 0:00:08.2]} 30... Ng4
{[%clk 0:00:33.7]} 31. h3 {[%clk 0:00:06.9]} 31... Nf2+ {[%clk 0:00:26.7]} 32.
Kg1 {[%clk 0:00:04.5]} 32... Nxh3+ {[%clk 0:00:26.6]} 33. gxh3 {[%clk
0:00:05.1]} 33... Rxf3 {[%clk 0:00:23.4]} 34. Qe5 {[%clk 0:00:05.2]} 34... Qg6+
{[%clk 0:00:23.9]} 35. Bg2 {[%clk 0:00:05.1]} 35... Rf2 {[%clk 0:00:24]} 36.
Qe6+ {[%clk 0:00:05.4]} 36... Qxe6 {[%clk 0:00:21.5]} 37. Rxe6 {[%clk
0:00:06.3]} 37... Rc2 {[%clk 0:00:22.1]} 38. Ree7 {[%clk 0:00:06.7]} 38... Rff2
{[%clk 0:00:20]} 39. Rxg7+ {[%clk 0:00:06.8]} 39... Kf8 {[%clk 0:00:19.5]} 40.
Rg3 {[%clk 0:00:06.8]} 40... Rxb2 {[%clk 0:00:17.8]} 41. Rxh7 {[%clk 0:00:05.2]}
41... Rfc2 {[%clk 0:00:11.9]} 42. h4 {[%clk 0:00:05]} 42... Rb4 {[%clk
0:00:10.7]} 43. h5 {[%clk 0:00:04.7]} 43... Rc1+ {[%clk 0:00:10.7]} 44. Kh2
{[%clk 0:00:03.9]} 44... Rh4+ {[%clk 0:00:10.7]} 45. Rh3 {[%clk 0:00:04.5]}
45... Rg4 {[%clk 0:00:08.7]} 46. h6 {[%clk 0:00:03.7]} 46... Rc2 {[%clk
0:00:09.4]} 47. Rg3 {[%clk 0:00:04.1]} 47... Rh4+ {[%clk 0:00:10]} 48. Kg1
{[%clk 0:00:04.6]} 48... Rc1+ {[%clk 0:00:09.7]} 49. Kf2 {[%clk 0:00:03]} 49...
Rc2+ {[%clk 0:00:09.9]} 50. Kg1 {[%clk 0:00:03.3]} 50... Rc1+ {[%clk 0:00:10.3]}
51. Kf2 {[%clk 0:00:03]} 51... Rc2+ {[%clk 0:00:10.6]} 52. Kf3 {[%clk
0:00:03.4]} 52... Rc3+ {[%clk 0:00:10.8]} 53. Kf2 {[%clk 0:00:04.1]} 53... Rc2+
{[%clk 0:00:11.4]} 1/2-1/2